[Event "*** Titled Tuesday Blitz"]
[Site "Chess.com"]
[Date "2021.04.20"]
[Round "4"]
[White "leopato"]
[Black "tgpgoat"]
[Result "1-0"]
[WhiteElo "2126"]
[BlackElo "2263"]
[TimeControl "180+1"]
[EndTime "10:38:57 PDT"]
[Termination "leopato won by checkmate"]

1. e4 {[%clk 0:02:56.2]} 1... c5 {[%clk 0:03:00]} 2. Nf3 {[%clk 0:02:50.5]} 2...
Nc6 {[%clk 0:02:57]} 3. d4 {[%clk 0:02:49.5]} 3... cxd4 {[%clk 0:02:57.9]} 4.
Nxd4 {[%clk 0:02:49]} 4... e6 {[%clk 0:02:58.8]} 5. Nb5 {[%clk 0:02:48.1]} 5...
d6 {[%clk 0:02:55.9]} 6. Bf4 {[%clk 0:02:46.7]} 6... e5 {[%clk 0:02:55.3]} 7.
Be3 {[%clk 0:02:46.3]} 7... a6 {[%clk 0:02:53.9]} 8. N5c3 {[%clk 0:02:43]} 8...
Nf6 {[%clk 0:02:53.9]} 9. Bg5 {[%clk 0:02:32.2]} 9... Be7 {[%clk 0:02:52.1]} 10.
Bxf6 {[%clk 0:02:29.6]} 10... Bxf6 {[%clk 0:02:50.9]} 11. Nd5 {[%clk 0:02:30.5]}
11... Bg5 {[%clk 0:02:49.8]} 12. Nbc3 {[%clk 0:02:28.4]} 12... b5 {[%clk
0:02:48.1]} 13. Be2 {[%clk 0:02:14.9]} 13... O-O {[%clk 0:02:43.6]} 14. Bg4
{[%clk 0:02:11.8]} 14... Nd4 {[%clk 0:02:35.5]} 15. Bxc8 {[%clk 0:02:07.6]}
15... Rxc8 {[%clk 0:02:34.5]} 16. a3 {[%clk 0:02:06.5]} 16... Kh8 {[%clk
0:02:29.8]} 17. h4 {[%clk 0:01:59.6]} 17... Bxh4 {[%clk 0:02:10.9]} 18. Qh5
{[%clk 0:01:58]} 18... Qg5 {[%clk 0:02:06.5]} 19. Qxg5 {[%clk 0:01:01.4]} 19...
Bxg5 {[%clk 0:02:07.2]} 20. O-O {[%clk 0:00:55.1]} 20... Nxc2 {[%clk 0:02:05.7]}
21. Rad1 {[%clk 0:00:52.6]} 21... Nd4 {[%clk 0:02:04.7]} 22. f4 {[%clk
0:00:50.4]} 22... exf4 {[%clk 0:01:59.9]} 23. Rxd4 {[%clk 0:00:48.6]} 23... Bd8
{[%clk 0:01:37.2]} 24. Rd3 {[%clk 0:00:42.2]} 24... g5 {[%clk 0:01:34.1]} 25. g3
{[%clk 0:00:36.6]} 25... f5 {[%clk 0:01:14.7]} 26. gxf4 {[%clk 0:00:35]} 26...
fxe4 {[%clk 0:01:14.1]} 27. Nxe4 {[%clk 0:00:34.2]} 27... gxf4 {[%clk
0:01:14.3]} 28. Nxf4 {[%clk 0:00:31.4]} 28... Bb6+ {[%clk 0:01:13.3]} 29. Kg2
{[%clk 0:00:29.6]} 29... Rc2+ {[%clk 0:01:12]} 30. Kf3 {[%clk 0:00:22.3]} 30...
Rxb2 {[%clk 0:01:08.7]} 31. Rxd6 {[%clk 0:00:18.4]} 31... Bc7 {[%clk 0:01:08.2]}
32. Rh1 {[%clk 0:00:13.8]} 32... Bxd6 {[%clk 0:00:57]} 33. Nxd6 {[%clk
0:00:14.7]} 33... Kg7 {[%clk 0:00:52.8]} 34. Ke4 {[%clk 0:00:13.1]} 34... Rb8
{[%clk 0:00:43.5]} 35. Ne6+ {[%clk 0:00:11.6]} 35... Kf6 {[%clk 0:00:42.9]} 36.
Rh6+ {[%clk 0:00:09.3]} 36... Ke7 {[%clk 0:00:42.8]} 37. Nf5+ {[%clk 0:00:08.4]}
37... Kd7 {[%clk 0:00:35.3]} 38. Nc5+ {[%clk 0:00:07.7]} 38... Kc7 {[%clk
0:00:29.4]} 39. Nxa6+ {[%clk 0:00:07]} 39... Kb7 {[%clk 0:00:28.1]} 40. Nxb8
{[%clk 0:00:07.9]} 40... Kxb8 {[%clk 0:00:29]} 41. Rxh7 {[%clk 0:00:08.1]} 41...
Rb3 {[%clk 0:00:24.3]} 42. Nd6 {[%clk 0:00:09]} 42... Rxa3 {[%clk 0:00:23]} 43.
Kd5 {[%clk 0:00:09.9]} 43... b4 {[%clk 0:00:20.8]} 44. Kc6 {[%clk 0:00:09.2]}
44... Ra6+ {[%clk 0:00:19.8]} 45. Kc5 {[%clk 0:00:08.5]} 45... b3 {[%clk
0:00:19.3]} 46. Rb7+ {[%clk 0:00:08.3]} 46... Ka8 {[%clk 0:00:17.6]} 47. Rxb3
{[%clk 0:00:09.2]} 47... Ra5+ {[%clk 0:00:17.3]} 48. Kb6 {[%clk 0:00:08.2]}
48... Ra7 {[%clk 0:00:15.3]} 49. Rh3 {[%clk 0:00:05.9]} 49... Rd7 {[%clk
0:00:02]} 50. Rh8+ {[%clk 0:00:05]} 50... Rd8 {[%clk 0:00:02.7]} 51. Rxd8#
{[%clk 0:00:05.2]} 1-0

[Event "*** Titled Tuesday Blitz"]
[Site "Chess.com"]
[Date "2021.04.20"]
[Round "4"]
[White "ChristopherYoo"]
[Black "Supernotar"]
[Result "0-1"]
[WhiteElo "2873"]
[BlackElo "2676"]
[TimeControl "180+1"]
[EndTime "10:38:59 PDT"]
[Termination "Supernotar won by resignation"]

1. e4 {[%clk 0:03:00.9]} 1... c6 {[%clk 0:02:59.9]} 2. d4 {[%clk 0:02:58.4]}
2... d5 {[%clk 0:03:00.2]} 3. exd5 {[%clk 0:02:59.3]} 3... cxd5 {[%clk 0:03:00]}
4. c4 {[%clk 0:02:59.8]} 4... Nf6 {[%clk 0:02:59.6]} 5. Nc3 {[%clk 0:02:59.4]}
5... e6 {[%clk 0:02:59.8]} 6. Nf3 {[%clk 0:02:58.6]} 6... Be7 {[%clk 0:02:59.8]}
7. cxd5 {[%clk 0:02:54.8]} 7... Nxd5 {[%clk 0:03:00.7]} 8. Bd3 {[%clk 0:02:54]}
8... Nc6 {[%clk 0:03:00.7]} 9. O-O {[%clk 0:02:53.8]} 9... O-O {[%clk
0:03:00.6]} 10. Nxd5 {[%clk 0:02:53.9]} 10... Qxd5 {[%clk 0:03:00]} 11. a3
{[%clk 0:02:53.1]} 11... b6 {[%clk 0:02:55.9]} 12. Qc2 {[%clk 0:02:52.3]} 12...
Bb7 {[%clk 0:02:47.8]} 13. Bxh7+ {[%clk 0:02:40.9]} 13... Kh8 {[%clk 0:02:48]}
14. Be4 {[%clk 0:02:40.1]} 14... Nxd4 {[%clk 0:02:47]} 15. Bxd5 {[%clk
0:02:39.6]} 15... Nxc2 {[%clk 0:02:45.1]} 16. Bxb7 {[%clk 0:02:39.6]} 16... Rab8
{[%clk 0:02:42.3]} 17. Bf4 {[%clk 0:02:07.4]} 17... Nxa1 {[%clk 0:02:42.3]} 18.
Bxb8 {[%clk 0:02:06.2]} 18... Rxb8 {[%clk 0:02:41.8]} 19. Ba6 {[%clk 0:01:54.9]}
19... Nb3 {[%clk 0:02:40]} 20. Ne5 {[%clk 0:01:54.5]} 20... Kg8 {[%clk
0:02:35.3]} 21. Nc6 {[%clk 0:01:52]} 21... Re8 {[%clk 0:02:32.8]} 22. Bb5 {[%clk
0:01:50.6]} 22... Kf8 {[%clk 0:02:21.3]} 23. Nxa7 {[%clk 0:01:37.1]} 23... Rd8
{[%clk 0:02:17.7]} 24. Nc6 {[%clk 0:01:34.7]} 24... Rd2 {[%clk 0:02:14.9]} 25.
Nxe7 {[%clk 0:01:34.9]} 25... Kxe7 {[%clk 0:02:14.2]} 26. Rb1 {[%clk 0:01:35]}
26... f5 {[%clk 0:02:10.9]} 27. Bc4 {[%clk 0:01:30.7]} 27... Nd4 {[%clk
0:02:08.8]} 28. Kf1 {[%clk 0:01:29.6]} 28... Rc2 {[%clk 0:02:06.8]} 29. Bd3
{[%clk 0:01:28.5]} 29... Rd2 {[%clk 0:02:06.9]} 30. Bc4 {[%clk 0:01:17.7]} 30...
Rc2 {[%clk 0:02:06.8]} 31. Ba6 {[%clk 0:01:13.3]} 31... b5 {[%clk 0:02:04.5]}
32. b3 {[%clk 0:01:07]} 32... Ra2 {[%clk 0:01:59.7]} 33. Rd1 {[%clk 0:00:56.5]}
33... Rxa3 {[%clk 0:01:54]} 34. Rxd4 {[%clk 0:00:53.7]} 34... Rxa6 {[%clk
0:01:54]} 35. h4 {[%clk 0:00:53.5]} 35... Rd6 {[%clk 0:01:51.3]} 36. Rb4 {[%clk
0:00:44.9]} 36... Rd5 {[%clk 0:01:51.4]} 37. Ke2 {[%clk 0:00:45.5]} 37... e5
{[%clk 0:01:49.1]} 38. g4 {[%clk 0:00:44.4]} 38... g6 {[%clk 0:01:47.4]} 39.
gxf5 {[%clk 0:00:40.5]} 39... gxf5 {[%clk 0:01:47.3]} 40. h5 {[%clk 0:00:41]}
40... Kf6 {[%clk 0:01:45.8]} 41. h6 {[%clk 0:00:39.5]} 41... Kg6 {[%clk
0:01:44]} 42. Rh4 {[%clk 0:00:39.1]} 42... Rd7 {[%clk 0:01:42.7]} 43. Ke3 {[%clk
0:00:35.5]} 43... Rh7 {[%clk 0:01:40.2]} 44. Rb4 {[%clk 0:00:35]} 44... Rxh6
{[%clk 0:01:39.4]} 45. Rxb5 {[%clk 0:00:34.7]} 45... Rh3+ {[%clk 0:01:37.8]} 46.
Ke2 {[%clk 0:00:33.7]} 46... e4 {[%clk 0:01:36.9]} 47. Rb8 {[%clk 0:00:33.7]}
47... Kg5 {[%clk 0:01:34.7]} 48. b4 {[%clk 0:00:24.4]} 48... Kf4 {[%clk
0:01:33.2]} 49. Rc8 {[%clk 0:00:09.3]} 49... Rb3 {[%clk 0:01:32.7]} 50. Rc4
{[%clk 0:00:09.2]} 50... Rb2+ {[%clk 0:01:30.5]} 51. Ke1 {[%clk 0:00:09.6]}
51... Kf3 {[%clk 0:01:26.6]} 52. Rc3+ {[%clk 0:00:09.2]} 52... Kg4 {[%clk
0:01:26.3]} 53. Rc4 {[%clk 0:00:07]} 53... Kf4 {[%clk 0:01:20.4]} 54. Kf1 {[%clk
0:00:06.2]} 54... Kf3 {[%clk 0:01:18.4]} 55. Rc3+ {[%clk 0:00:06.2]} 55... Kg4
{[%clk 0:01:18.4]} 56. Rc4 {[%clk 0:00:06]} 56... Kg5 {[%clk 0:01:11.9]} 57. Rd4
{[%clk 0:00:04.7]} 57... Kf6 {[%clk 0:01:09.9]} 58. Rc4 {[%clk 0:00:04.9]} 58...
Ke5 {[%clk 0:01:09.8]} 59. Rc5+ {[%clk 0:00:05.4]} 59... Kf4 {[%clk 0:01:07.8]}
60. Rc4 {[%clk 0:00:05.7]} 60... Ra2 {[%clk 0:01:00.8]} 61. Kg2 {[%clk
0:00:05.1]} 61... Ra7 {[%clk 0:00:56.1]} 62. Kf1 {[%clk 0:00:05.1]} 62... Ra2
{[%clk 0:00:53.4]} 63. Kg2 {[%clk 0:00:04.8]} 63... Ra6 {[%clk 0:00:51.7]} 64.
Kf1 {[%clk 0:00:04.9]} 64... Rb6 {[%clk 0:00:51.4]} 65. Ke2 {[%clk 0:00:04.9]}
65... Rb5 {[%clk 0:00:50.8]} 66. Kf1 {[%clk 0:00:05]} 66... Ke5 {[%clk
0:00:49.2]} 67. Rc5+ {[%clk 0:00:02.3]} 67... Rxc5 {[%clk 0:00:49.2]} 68. bxc5
{[%clk 0:00:03.2]} 68... Kd5 {[%clk 0:00:49.9]} 69. Ke2 {[%clk 0:00:02.4]} 69...
f4 {[%clk 0:00:50]} 70. Kd2 {[%clk 0:00:01.6]} 70... Kxc5 {[%clk 0:00:49.8]} 71.
Ke2 {[%clk 0:00:02.1]} 71... Kc4 {[%clk 0:00:46.4]} 72. Kd2 {[%clk 0:00:01.5]}
72... Kd4 {[%clk 0:00:46.4]} 73. Ke2 {[%clk 0:00:02.1]} 73... Kc3 {[%clk
0:00:46.4]} 74. Ke1 {[%clk 0:00:02.4]} 74... f3 {[%clk 0:00:42.1]} 75. Kd1
{[%clk 0:00:02.1]} 75... Kd3 {[%clk 0:00:41.8]} 76. Ke1 {[%clk 0:00:01.7]} 76...
Kc2 {[%clk 0:00:39.7]} 77. Kf1 {[%clk 0:00:01.5]} 77... Kd2 {[%clk 0:00:39.6]}
78. Kg1 {[%clk 0:00:02.4]} 78... Ke2 {[%clk 0:00:39.2]} 0-1

[Event "*** Titled Tuesday Blitz"]
[Site "Chess.com"]
[Date "2021.04.20"]
[Round "4"]
[White "sergeikim"]
[Black "Twitch_ElhamBlitz05"]
[Result "0-1"]
[WhiteElo "2528"]
[BlackElo "2744"]
[TimeControl "180+1"]
[EndTime "10:38:59 PDT"]
[Termination "Twitch_ElhamBlitz05 won by resignation"]

1. d4 {[%clk 0:03:00.9]} 1... Nf6 {[%clk 0:02:58.8]} 2. c4 {[%clk 0:03:00.9]}
2... e6 {[%clk 0:02:58.7]} 3. Nc3 {[%clk 0:03:00.8]} 3... d5 {[%clk 0:02:58.7]}
4. Nf3 {[%clk 0:03:00]} 4... dxc4 {[%clk 0:02:58.4]} 5. e3 {[%clk 0:02:59.3]}
5... a6 {[%clk 0:02:57]} 6. a4 {[%clk 0:02:59.2]} 6... b6 {[%clk 0:02:54.8]} 7.
Bxc4 {[%clk 0:02:59]} 7... Bb7 {[%clk 0:02:55.4]} 8. O-O {[%clk 0:02:59]} 8...
Nbd7 {[%clk 0:02:56]} 9. Qe2 {[%clk 0:02:59.1]} 9... Bb4 {[%clk 0:02:48.2]} 10.
Rd1 {[%clk 0:02:55.9]} 10... O-O {[%clk 0:02:47.3]} 11. Bd2 {[%clk 0:02:47]}
11... Qe7 {[%clk 0:02:46.4]} 12. h3 {[%clk 0:02:42.8]} 12... e5 {[%clk
0:02:34.2]} 13. d5 {[%clk 0:02:38.2]} 13... e4 {[%clk 0:02:25.9]} 14. Nd4 {[%clk
0:02:32]} 14... Ne5 {[%clk 0:02:25.7]} 15. Nf5 {[%clk 0:02:02.4]} 15... Qd7
{[%clk 0:02:22.6]} 16. Ng3 {[%clk 0:02:02.4]} 16... Nxc4 {[%clk 0:01:39.3]} 17.
Qxc4 {[%clk 0:02:01.5]} 17... Bxc3 {[%clk 0:01:36]} 18. Bxc3 {[%clk 0:02:00.8]}
18... Nxd5 {[%clk 0:01:36.4]} 19. Nxe4 {[%clk 0:01:46.4]} 19... Qe6 {[%clk
0:01:24.3]} 20. Ng5 {[%clk 0:01:30.2]} 20... Qf5 {[%clk 0:01:23.7]} 21. e4
{[%clk 0:01:14.7]} 21... Qxg5 {[%clk 0:00:55.9]} 22. exd5 {[%clk 0:01:14.5]}
22... Rad8 {[%clk 0:00:55.9]} 23. Qxc7 {[%clk 0:01:10.6]} 23... Bxd5 {[%clk
0:00:55.3]} 24. Qg3 {[%clk 0:01:06.4]} 24... Qxg3 {[%clk 0:00:47.8]} 25. fxg3
{[%clk 0:01:06]} 25... Bb3 {[%clk 0:00:48.1]} 26. Rxd8 {[%clk 0:01:05]} 26...
Rxd8 {[%clk 0:00:49]} 27. a5 {[%clk 0:01:05.3]} 27... b5 {[%clk 0:00:48.8]} 28.
Re1 {[%clk 0:01:03.5]} 28... Be6 {[%clk 0:00:44.8]} 29. Re2 {[%clk 0:01:00.9]}
29... h6 {[%clk 0:00:35.5]} 30. Rd2 {[%clk 0:01:00.8]} 30... Rc8 {[%clk
0:00:32.5]} 31. Rd6 {[%clk 0:00:56.1]} 31... Bc4 {[%clk 0:00:32]} 32. g4 {[%clk
0:00:50.4]} 32... Re8 {[%clk 0:00:31.5]} 33. Kf2 {[%clk 0:00:41.1]} 33... b4
{[%clk 0:00:20.5]} 34. Bxb4 {[%clk 0:00:35.6]} 34... Re2+ {[%clk 0:00:20]} 35.
Kg3 {[%clk 0:00:35.3]} 35... Rxb2 {[%clk 0:00:20.9]} 36. Bc3 {[%clk 0:00:30.5]}
36... Rb3 {[%clk 0:00:19.8]} 37. Kf4 {[%clk 0:00:26.1]} 37... Rxc3 {[%clk
0:00:19.6]} 38. Rc6 {[%clk 0:00:25.1]} 38... Rc2 {[%clk 0:00:17.2]} 39. g3
{[%clk 0:00:24.7]} 39... Bd3 {[%clk 0:00:16.9]} 40. Rd6 {[%clk 0:00:24.7]} 40...
Bb5 {[%clk 0:00:17]} 41. h4 {[%clk 0:00:24]} 41... Rc4+ {[%clk 0:00:15.7]} 42.
Kf5 {[%clk 0:00:22.7]} 42... g6+ {[%clk 0:00:14.2]} 43. Kf6 {[%clk 0:00:21.4]}
43... Rc6 {[%clk 0:00:14.4]} 44. Rxc6 {[%clk 0:00:20.3]} 44... Bxc6 {[%clk
0:00:15.3]} 45. g5 {[%clk 0:00:19.6]} 45... h5 {[%clk 0:00:15.5]} 46. Ke7 {[%clk
0:00:19.6]} 46... Kg7 {[%clk 0:00:15.1]} 47. Kd8 {[%clk 0:00:18.8]} 47... f6
{[%clk 0:00:14.3]} 48. Ke7 {[%clk 0:00:16.9]} 48... fxg5 {[%clk 0:00:14.1]} 49.
hxg5 {[%clk 0:00:17.8]} 49... Bb5 {[%clk 0:00:13.8]} 50. Ke6 {[%clk 0:00:18]}
50... Bd3 {[%clk 0:00:14.4]} 51. Ke7 {[%clk 0:00:17.8]} 51... Bc4 {[%clk
0:00:09.1]} 52. Ke8 {[%clk 0:00:17]} 52... Bg8 {[%clk 0:00:09.8]} 53. Ke7 {[%clk
0:00:16.9]} 53... Bf7 {[%clk 0:00:10.7]} 54. Kd7 {[%clk 0:00:15.1]} 54... Kf8
{[%clk 0:00:11.1]} 55. Kd8 {[%clk 0:00:15.2]} 55... Be6 {[%clk 0:00:11.8]} 56.
Kc7 {[%clk 0:00:15.3]} 56... Ke7 {[%clk 0:00:12]} 57. Kc6 {[%clk 0:00:15.4]}
57... Bc4 {[%clk 0:00:12.4]} 58. Kc5 {[%clk 0:00:14.9]} 58... Bb5 {[%clk
0:00:12]} 59. Kd5 {[%clk 0:00:15]} 59... Bd7 {[%clk 0:00:11.6]} 60. Ke5 {[%clk
0:00:13.1]} 60... Be6 {[%clk 0:00:11.7]} 61. Kd4 {[%clk 0:00:12.8]} 61... Kd6
{[%clk 0:00:12.3]} 62. Ke4 {[%clk 0:00:11.9]} 62... Kc5 {[%clk 0:00:12]} 63. Ke5
{[%clk 0:00:12.8]} 63... Bf5 {[%clk 0:00:12.5]} 0-1

[Event "*** Titled Tuesday Blitz"]
[Site "Chess.com"]
[Date "2021.04.20"]
[Round "4"]
[White "kekic76"]
[Black "MPGM"]
[Result "0-1"]
[WhiteElo "2335"]
[BlackElo "2522"]
[TimeControl "180+1"]
[EndTime "10:39:01 PDT"]
[Termination "MPGM won on time"]

1. e4 {[%clk 0:02:58.1]} 1... c6 {[%clk 0:02:56.3]} 2. d4 {[%clk 0:02:55.5]}
2... d5 {[%clk 0:02:57.2]} 3. Nc3 {[%clk 0:02:55]} 3... dxe4 {[%clk 0:02:57.3]}
4. Nxe4 {[%clk 0:02:55.9]} 4... Nf6 {[%clk 0:02:58]} 5. Nxf6+ {[%clk 0:02:55.8]}
5... exf6 {[%clk 0:02:58.9]} 6. Nf3 {[%clk 0:02:55.8]} 6... Bd6 {[%clk
0:02:59.4]} 7. h3 {[%clk 0:02:55.8]} 7... O-O {[%clk 0:02:59.8]} 8. Be2 {[%clk
0:02:55.9]} 8... Re8 {[%clk 0:02:59.1]} 9. O-O {[%clk 0:02:55.6]} 9... Nd7
{[%clk 0:02:55.4]} 10. Re1 {[%clk 0:02:55.4]} 10... Nf8 {[%clk 0:02:55.4]} 11.
Nd2 {[%clk 0:02:54.8]} 11... Bc7 {[%clk 0:02:49.2]} 12. Nf1 {[%clk 0:02:54.2]}
12... Bf5 {[%clk 0:02:31.9]} 13. c4 {[%clk 0:02:52.2]} 13... Qd6 {[%clk
0:02:19.7]} 14. Be3 {[%clk 0:02:44.6]} 14... Rad8 {[%clk 0:02:12.8]} 15. Qd2
{[%clk 0:02:37.6]} 15... Ne6 {[%clk 0:02:04.5]} 16. Rad1 {[%clk 0:02:33.2]}
16... Nf4 {[%clk 0:01:57.4]} 17. Bxf4 {[%clk 0:02:19.6]} 17... Qxf4 {[%clk
0:01:58.3]} 18. Qxf4 {[%clk 0:02:17.9]} 18... Bxf4 {[%clk 0:01:59.2]} 19. Bg4
{[%clk 0:01:50.3]} 19... Bc2 {[%clk 0:01:50.7]} 20. Ra1 {[%clk 0:01:26.5]} 20...
Rxe1 {[%clk 0:01:33.3]} 21. Rxe1 {[%clk 0:01:25.4]} 21... Kf8 {[%clk 0:01:34.2]}
22. d5 {[%clk 0:01:24.9]} 22... cxd5 {[%clk 0:01:31.1]} 23. cxd5 {[%clk
0:01:24.6]} 23... Rxd5 {[%clk 0:01:29.1]} 24. Bf3 {[%clk 0:01:24.6]} 24... Rd7
{[%clk 0:01:16.1]} 25. Ne3 {[%clk 0:01:19.8]} 25... Ba4 {[%clk 0:01:06.8]} 26.
Nd5 {[%clk 0:01:16.8]} 26... Be5 {[%clk 0:01:01.3]} 27. Nc3 {[%clk 0:00:53]}
27... Bc6 {[%clk 0:00:47.3]} 28. Bxc6 {[%clk 0:00:50.6]} 28... bxc6 {[%clk
0:00:48.2]} 29. Rd1 {[%clk 0:00:50.5]} 29... Ke7 {[%clk 0:00:41]} 30. Rxd7+
{[%clk 0:00:47.4]} 30... Kxd7 {[%clk 0:00:40.9]} 31. Na4 {[%clk 0:00:41.8]}
31... Kd6 {[%clk 0:00:21.1]} 32. Kf1 {[%clk 0:00:41]} 32... Kd5 {[%clk
0:00:21.4]} 33. b3 {[%clk 0:00:29.1]} 33... c5 {[%clk 0:00:20.5]} 34. Ke2 {[%clk
0:00:28.4]} 34... c4 {[%clk 0:00:20.5]} 35. f3 {[%clk 0:00:22.1]} 35... Bd4
{[%clk 0:00:20.3]} 36. Kd2 {[%clk 0:00:20.7]} 36... f5 {[%clk 0:00:20.5]} 37.
Ke2 {[%clk 0:00:17.2]} 37... h5 {[%clk 0:00:18.5]} 38. Kd2 {[%clk 0:00:16.9]}
38... h4 {[%clk 0:00:19]} 39. Ke2 {[%clk 0:00:16.8]} 39... cxb3 {[%clk 0:00:14]}
40. axb3 {[%clk 0:00:16.3]} 40... Ke5 {[%clk 0:00:14.2]} 41. Kd3 {[%clk
0:00:10.8]} 41... g6 {[%clk 0:00:08]} 42. b4 {[%clk 0:00:10.3]} 42... g5 {[%clk
0:00:06.1]} 43. Kc4 {[%clk 0:00:08.9]} 43... Bg1 {[%clk 0:00:05.7]} 44. Kd3
{[%clk 0:00:07.4]} 44... Kf4 {[%clk 0:00:05.9]} 45. Ke2 {[%clk 0:00:06.4]} 45...
Kg3 {[%clk 0:00:06.2]} 46. Kf1 {[%clk 0:00:06.1]} 46... Bd4 {[%clk 0:00:06.8]}
47. Nc5 {[%clk 0:00:05.9]} 47... Bc3 {[%clk 0:00:05.4]} 48. b5 {[%clk
0:00:04.1]} 48... Bd4 {[%clk 0:00:05.9]} 49. Nb7 {[%clk 0:00:02.6]} 49... g4
{[%clk 0:00:04.7]} 50. fxg4 {[%clk 0:00:02.8]} 50... fxg4 {[%clk 0:00:05.6]} 51.
hxg4 {[%clk 0:00:03.4]} 51... Kxg4 {[%clk 0:00:06.2]} 52. Nd6 {[%clk 0:00:03.8]}
52... f5 {[%clk 0:00:05.7]} 53. Nc4 {[%clk 0:00:02.8]} 53... f4 {[%clk
0:00:05.2]} 54. Nd2 {[%clk 0:00:02.6]} 54... Be3 {[%clk 0:00:02.6]} 55. Nf3
{[%clk 0:00:02.3]} 55... h3 {[%clk 0:00:02.5]} 0-1

[Event "*** Titled Tuesday Blitz"]
[Site "Chess.com"]
[Date "2021.04.20"]
[Round "4"]
[White "Harald_Schmidt"]
[Black "LifeIsAllAboutChess23"]
[Result "1-0"]
[WhiteElo "2397"]
[BlackElo "2136"]
[TimeControl "180+1"]
[EndTime "10:39:01 PDT"]
[Termination "Harald_Schmidt won by resignation"]

1. e4 {[%clk 0:02:59.5]} 1... e5 {[%clk 0:02:58.2]} 2. Nf3 {[%clk 0:02:57.3]}
2... Nc6 {[%clk 0:02:57.7]} 3. Bc4 {[%clk 0:02:52.6]} 3... Nf6 {[%clk
0:02:56.5]} 4. d3 {[%clk 0:02:51.3]} 4... Be7 {[%clk 0:02:53.1]} 5. c3 {[%clk
0:02:46.8]} 5... O-O {[%clk 0:02:50.1]} 6. a4 {[%clk 0:02:46.4]} 6... d5 {[%clk
0:02:45]} 7. exd5 {[%clk 0:02:45.7]} 7... Nxd5 {[%clk 0:02:42]} 8. a5 {[%clk
0:02:45.3]} 8... a6 {[%clk 0:02:38.8]} 9. h3 {[%clk 0:02:43]} 9... Be6 {[%clk
0:02:38.7]} 10. O-O {[%clk 0:02:41.9]} 10... f6 {[%clk 0:02:38]} 11. Qb3 {[%clk
0:02:38.9]} 11... Qd7 {[%clk 0:02:32.6]} 12. Nbd2 {[%clk 0:02:35.6]} 12... Rab8
{[%clk 0:02:24.6]} 13. Ne4 {[%clk 0:02:28.7]} 13... h6 {[%clk 0:02:11.6]} 14.
Re1 {[%clk 0:02:24.1]} 14... f5 {[%clk 0:02:08.1]} 15. Ng3 {[%clk 0:02:23]}
15... Bf6 {[%clk 0:02:05.9]} 16. Nh5 {[%clk 0:02:21.4]} 16... Rfd8 {[%clk
0:02:00.8]} 17. Nxf6+ {[%clk 0:02:18.6]} 17... gxf6 {[%clk 0:02:00.6]} 18. d4
{[%clk 0:02:14.8]} 18... e4 {[%clk 0:01:55.4]} 19. Nh4 {[%clk 0:02:09.7]} 19...
Qh7 {[%clk 0:01:41]} 20. f3 {[%clk 0:02:06.8]} 20... Kf7 {[%clk 0:01:33.5]} 21.
Bd2 {[%clk 0:01:45.9]} 21... Nce7 {[%clk 0:01:26.6]} 22. Rf1 {[%clk 0:01:34.8]}
22... e3 {[%clk 0:01:23.4]} 23. Bxe3 {[%clk 0:01:34.2]} 23... Nxe3 {[%clk
0:01:18.6]} 24. Bxe6+ {[%clk 0:01:33]} 24... Kf8 {[%clk 0:01:18.7]} 25. Rfe1
{[%clk 0:01:32.8]} 25... f4 {[%clk 0:01:18.8]} 26. g4 {[%clk 0:01:28.6]} 26...
Qd3 {[%clk 0:01:11]} 27. Ng2 {[%clk 0:01:19.2]} 27... Nxg2 {[%clk 0:01:02.3]}
28. Kxg2 {[%clk 0:01:13.6]} 28... Ng6 {[%clk 0:01:01.4]} 29. Bd5 {[%clk
0:00:47.6]} 29... Nh4+ {[%clk 0:01:00.2]} 30. Kf2 {[%clk 0:00:47.6]} 30... Re8
{[%clk 0:00:48.8]} 31. Qd1 {[%clk 0:00:46.8]} 31... Qb5 {[%clk 0:00:36.6]} 32.
Qb3 {[%clk 0:00:31.1]} 32... Qd3 {[%clk 0:00:34.9]} 33. Rad1 {[%clk 0:00:30.8]}
33... Qg6 {[%clk 0:00:29.9]} 34. Qb4+ {[%clk 0:00:26.1]} 34... Kg7 {[%clk
0:00:23.5]} 35. Re7+ {[%clk 0:00:25.4]} 35... Kh8 {[%clk 0:00:23.3]} 36. Rde1
{[%clk 0:00:25]} 36... Rxe7 {[%clk 0:00:17.5]} 37. Qxe7 {[%clk 0:00:23.8]} 37...
Qc2+ {[%clk 0:00:16.9]} 38. Re2 {[%clk 0:00:23]} 38... Qg6 {[%clk 0:00:16.8]}
39. Be4 {[%clk 0:00:21.2]} 39... Qg7 {[%clk 0:00:16.2]} 40. Qxg7+ {[%clk
0:00:20.4]} 40... Kxg7 {[%clk 0:00:17.1]} 41. b4 {[%clk 0:00:18.4]} 41... c6
{[%clk 0:00:16.5]} 42. Rd2 {[%clk 0:00:16.2]} 42... Re8 {[%clk 0:00:16.7]} 43.
d5 {[%clk 0:00:14.8]} 43... Rd8 {[%clk 0:00:16.8]} 44. d6 {[%clk 0:00:11.9]}
44... Ng6 {[%clk 0:00:16.5]} 45. Bxg6 {[%clk 0:00:11]} 45... Kxg6 {[%clk
0:00:17.4]} 46. c4 {[%clk 0:00:11.4]} 46... Kf7 {[%clk 0:00:17.2]} 47. c5 {[%clk
0:00:11.2]} 47... Ke6 {[%clk 0:00:16.8]} 48. Re2+ {[%clk 0:00:11]} 48... Kd5
{[%clk 0:00:17]} 49. Re7 {[%clk 0:00:10.1]} 49... Kc4 {[%clk 0:00:17.2]} 50.
Rxb7 {[%clk 0:00:09.4]} 50... Re8 {[%clk 0:00:15.5]} 51. Rb6 {[%clk 0:00:08.7]}
51... Rd8 {[%clk 0:00:15.7]} 52. Rxc6 {[%clk 0:00:08.6]} 52... Kxb4 {[%clk
0:00:15.8]} 53. Rc7 {[%clk 0:00:09]} 53... Kxa5 {[%clk 0:00:15.7]} 54. d7 {[%clk
0:00:09.9]} 54... Kb5 {[%clk 0:00:15.8]} 55. c6 {[%clk 0:00:10.2]} 55... Kb6
{[%clk 0:00:15.8]} 56. Rc8 {[%clk 0:00:10.7]} 56... a5 {[%clk 0:00:15]} 57. Rxd8
{[%clk 0:00:10.7]} 57... Kxc6 {[%clk 0:00:15.6]} 58. Ra8 {[%clk 0:00:10.9]}
58... Kxd7 {[%clk 0:00:15.9]} 59. Rxa5 {[%clk 0:00:11.8]} 1-0